bitfinex/quotes_BTCUSD_20240906
["timestamp","ask_amount","ask_price","bid_price","bid_amount"]
[1725635413710,0.912475,54796.0,54795.0,0.03667]
[1725635413947,1.277465,54796.0,54795.0,0.03667]
[1725635414181,1.277465,54796.0,54781.0,0.4025]
[1725635414182,0.182511,54791.0,54788.0,0.03667]
[1725635414430,0.182511,54791.0,54773.0,0.4]
[1725635414432,1.742603,54791.0,54773.0,0.4]
[1725635414672,2.107626,54791.0,54773.0,0.4]
[1725635414902,2.107626,54791.0,54772.0,0.3816]
[1725635414903,0.182568,54775.0,54772.0,0.3816]
[1725635415134,0.1,54791.0,54777.0,0.03667]
[1725635415135,0.1,54790.0,54777.0,0.03667]
[1725635415373,0.40607656,54796.0,54779.0,0.03667]
[1725635415603,0.1,54795.0,54779.0,0.03667]
[1725635415836,0.40607656,54796.0,54772.0,0.8354824]
[1725635415837,0.02547656,54796.0,54786.0,0.03667]
[1725635416080,0.182525,54787.0,54786.0,0.03667]
[1725635416331,0.547575,54787.0,54786.0,0.05967]
[1725635416564,0.00082,54804.0,54794.0,0.3783]
[1725635416834,0.182498,54795.0,54794.0,0.3783]
[1725635417067,0.00082,54804.0,54803.0,0.182471]
[1725635417312,0.00082,54804.0,54803.0,0.42997]
[1725635417556,0.00082,54804.0,54803.0,1.000384]
[1725635417791,0.00082,54804.0,54803.0,1.92517]
[1725635418026,0.000816,54811.0,54810.0,1.4371964]
[1725635418278,0.00081,54825.0,54823.0,0.6829574]
[1725635418532,0.52731515,54834.0,54829.0,1.0377074]
[1725635418784,0.52731515,54834.0,54829.0,1.4537214]
[1725635419039,0.365505,54842.0,54829.0,1.4537214]
[1725635419040,0.00082,54842.0,54841.0,0.219015]
[1725635419300,0.00081,54852.0,54847.0,0.01]
[1725635419557,0.00081,54852.0,54844.0,0.81784]
[1725635419558,0.00081,54859.0,54854.0,0.4538824]
[1725635419761,0.182295,54856.0,54855.0,0.03667]
[1725635420002,0.911475,54856.0,54855.0,0.05967]
[1725635420278,1.276065,54856.0,54855.0,0.023]
[1725635420519,0.00081,54859.0,54851.0,0.03667]
[1725635420520,0.546925,54852.0,54851.0,0.03667]
[1725635420763,0.21791882,54859.0,54843.0,0.03667]
[1725635420764,0.364624,54851.0,54843.0,0.03667]
[1725635421017,0.21791882,54859.0,54843.0,0.03667]
[1725635421018,0.547005,54844.0,54843.0,0.03667]
[1725635421274,0.911675,54844.0,54843.0,0.05947268]
[1725635421519,0.547005,54844.0,54843.0,0.05947268]
[1725635421805,0.182335,54844.0,54843.0,0.05947268]
[1725635422047,0.21768449,54859.0,54843.0,0.05947268]
[1725635422048,0.364589,54857.0,54843.0,0.05947268]
[1725635422296,0.00081,54859.0,54844.0,0.05927536]
[1725635422297,0.182332,54845.0,54844.0,0.05927536]
[1725635422542,0.182332,54845.0,54844.0,0.05910757]
[1725635422805,0.546996,54845.0,54844.0,0.05910757]
[1725635423042,0.000814,54852.0,54835.0,0.4]
[1725635423043,0.547084,54836.0,54835.0,0.4]
[1725635423284,0.547084,54836.0,54824.0,0.05366562]
[1725635423285,0.182398,54825.0,54824.0,0.05366562]
[1725635423559,1.9269714,54825.0,54824.0,0.05366562]
[1725635423787,1.473089,54825.0,54824.0,0.05366562]
[1725635424023,1.473089,54825.0,54824.0,0.44706562]
[1725635424024,0.182398,54825.0,54824.0,0.44706562]
[1725635424295,0.547195,54825.0,54824.0,0.44706562]
[1725635424750,0.911992,54825.0,54824.0,0.44706562]
[1725635425485,0.52650515,54840.0,54824.0,0.44706562]
[1725635425486,0.182382,54830.0,54824.0,0.44706562]
[1725635425716,0.01906525,54844.0,54827.0,0.4538824]
[1725635425964,0.364606,54854.0,54843.0,0.182338]
[1725635426201,0.00081,54859.0,54841.0,0.6362254]
[1725635426202,0.52650515,54849.0,54841.0,0.6362254]
[1725635426425,0.00081,54859.0,54843.0,0.5802]
[1725635426426,0.364598,54855.0,54843.0,0.5802]
[1725635426692,0.00081,54859.0,54843.0,0.5802]
[1725635426693,0.182333,54845.0,54844.0,0.023]
[1725635426926,0.546997,54845.0,54844.0,0.023]
[1725635427173,1.276325,54845.0,54844.0,0.023]
[1725635428110,1.640989,54845.0,54844.0,0.023]
[1725635428334,1.276325,54845.0,54844.0,0.023]
[1725635428584,1.276325,54845.0,54829.0,0.387]
[1725635428585,0.182381,54830.0,54829.0,0.387]
[1725635429070,0.911992,54825.0,54824.0,0.05366562]
[1725635429323,0.182398,54825.0,54824.0,0.05366562]
[1725635429586,0.911992,54825.0,54824.0,0.05366562]
[1725635429856,2.1954684,54825.0,54824.0,0.05366562]
[1725635430392,1.741586,54825.0,54824.0,0.05366562]
[1725635430898,2.106383,54825.0,54824.0,0.05366562]
[1725635430902,2.1954684,54825.0,54824.0,0.05366562]
[1725635431149,2.1314918,54825.0,54824.0,0.05366562]
[1725635431401,2.5853742,54825.0,54824.0,0.05366562]
[1725635432147,0.01,54819.0,54802.0,0.52650515]
[1725635432384,0.547414,54803.0,54802.0,0.52650515]
[1725635432615,0.547414,54803.0,54794.0,0.001628]
[1725635432616,0.547494,54795.0,54794.0,0.001628]
[1725635432880,0.91249,54795.0,54794.0,0.001628]
[1725635433112,1.28569845,54795.0,54794.0,0.001628]
[1725635433343,1.65069445,54795.0,54794.0,0.001628]
[1725635434082,2.11569045,54795.0,54794.0,0.001628]
[1725635434316,2.11569045,54795.0,54763.0,0.52650515]
[1725635434317,0.547764,54768.0,54763.0,0.91560515]
[1725635434579,0.547764,54768.0,54766.0,0.073225]
[1725635434850,0.547764,54768.0,54763.0,0.91560515]
[1725635434851,0.00789423,54768.0,54767.0,0.582589]
[1725635435103,0.00789423,54768.0,54767.0,0.182589]
[1725635435373,0.1,54783.0,54767.0,0.182589]
[1725635435374,0.36508,54783.0,54773.0,0.3942]
[1725635435605,0.365042,54789.0,54779.0,0.182548]
[1725635435606,0.182529,54786.0,54779.0,0.182548]
[1725635435840,0.1931,54809.0,54781.0,0.8547824]
[1725635436098,0.00789816,54785.0,54784.0,1.328075]
[1725635436343,0.52650515,54817.0,54802.0,0.1867]
[1725635436344,0.00805453,54806.0,54802.0,0.1867]
[1725635436571,0.364915,54808.0,54803.0,0.05967]
[1725635436819,0.547404,54804.0,54803.0,0.05967]
[1725635437067,0.91234,54804.0,54803.0,0.05967]
[1725635437565,0.547404,54804.0,54803.0,0.05967]
[1725635437795,0.91234,54804.0,54803.0,0.05967]
[1725635438033,0.547404,54804.0,54803.0,0.023]
[1725635438268,0.182471,54803.0,54802.0,0.023]
[1725635438864,0.547414,54803.0,54802.0,0.023]
[1725635439104,0.912357,54803.0,54802.0,0.023]
[1725635439377,0.464858,54816.0,54793.0,0.03667]
[1725635439378,0.02457153,54813.0,54793.0,0.03667]
[1725635439623,0.00185447,54812.0,54793.0,0.401678]
[1725635439874,0.00185447,54812.0,54795.0,0.03667]
[1725635440124,0.4538824,54809.0,54795.0,0.03667]
[1725635440341,0.4538824,54803.0,54788.0,0.4]
[1725635440589,0.10185447,54802.0,54788.0,0.4]
[1725635441101,0.1,54802.0,54783.0,0.5676]
[1725635441346,0.1,54808.0,54793.0,0.3858]
[1725635441833,0.4676,54810.0,54800.0,0.4538824]
[1725635442085,0.52650515,54814.0,54805.0,0.182464]
[1725635442341,0.000814,54825.0,54811.0,0.03667]
[1725635442837,0.000814,54825.0,54813.0,0.03667]
[1725635443069,0.000814,54825.0,54814.0,0.05967]
[1725635443320,0.000814,54825.0,54814.0,0.03667]
[1725635443321,0.00185447,54824.0,54814.0,0.03667]
[1725635443567,0.01083063,54824.0,54815.0,0.023]
[1725635443814,0.3966,54823.0,54815.0,0.023]
[1725635444084,0.3966,54823.0,54800.0,0.4]
[1725635444085,0.1935,54818.0,54800.0,0.4]
[1725635444315,0.1935,54818.0,54791.0,0.52650515]
[1725635444316,0.3955,54812.0,54793.0,0.4]
[1725635444542,0.3955,54812.0,54791.0,0.52650515]
[1725635444543,0.4538824,54796.0,54791.0,0.52650515]
[1725635444804,0.00185447,54795.0,54789.0,0.4]
[1725635445065,0.00185447,54795.0,54776.0,0.52650515]
[1725635445066,0.11082676,54795.0,54776.0,0.52650515]
[1725635445321,0.11082676,54795.0,54776.0,0.56317515]
[1725635445563,0.11082676,54795.0,54776.0,0.03667]
[1725635445835,0.11082676,54795.0,54764.0,0.52650515]
[1725635445836,0.4538824,54777.0,54764.0,0.52650515]
[1725635446134,0.00185447,54776.0,54764.0,0.52650515]
[1725635446345,0.11083181,54776.0,54761.0,0.380928]
[1725635446587,0.11083181,54776.0,54765.0,0.073225]
[1725635446845,0.1,54775.0,54761.0,0.380928]
[1725635447074,0.10185447,54775.0,54761.0,0.380928]
[1725635447304,0.10185447,54775.0,54762.0,0.03667]
[1725635447529,0.10185447,54775.0,54761.0,0.001628]
[1725635447762,0.00887077,54774.0,54761.0,0.07486]
[1725635447996,0.5675,54769.0,54761.0,0.001628]
[1725635448229,0.5675,54769.0,54761.0,0.001308]
[1725635448230,0.00185447,54768.0,54761.0,0.001308]
[1725635448474,0.11055867,54768.0,54761.0,0.001308]
[1725635448720,0.4538824,54763.0,54761.0,0.001308]
[1725635448949,0.1,54762.0,54761.0,0.001308]
[1725635449204,0.10889643,54762.0,54761.0,0.001308]
[1725635450424,0.1107509,54762.0,54761.0,0.001308]
[1725635450675,0.10889643,54762.0,54761.0,0.001308]
[1725635451139,0.5646333,54762.0,54761.0,0.001308]
[1725635451374,0.4646333,54762.0,54761.0,0.001308]
[1725635451597,0.012,54761.0,54760.0,0.09397914]
[1725635451858,0.012,54761.0,54760.0,0.06085243]
[1725635451859,0.67905447,54761.0,54760.0,0.06085243]
[1725635452097,0.67905447,54761.0,54748.0,0.00162]
[1725635452098,0.01,54755.0,54748.0,0.00162]
[1725635452337,0.002,54756.0,54748.0,0.00162]
[1725635452338,0.4538824,54752.0,54748.0,0.00162]
[1725635452568,0.10185447,54751.0,54748.0,0.00162]
[1725635452802,0.01,54749.0,54748.0,0.00162]
[1725635453050,0.03185447,54749.0,54748.0,0.00162]
[1725635453301,0.12028154,54749.0,54748.0,0.00162]
[1725635453534,0.11028154,54749.0,54748.0,0.00162]
[1725635454004,0.10185447,54749.0,54748.0,0.00162]
[1725635454238,0.12716124,54749.0,54748.0,0.00162]
[1725635455226,0.04622649,54749.0,54748.0,0.00162]
[1725635455473,0.04437202,54749.0,54748.0,0.00162]
[1725635456200,0.01906525,54749.0,54748.0,0.00162]
[1725635457146,0.47480212,54749.0,54748.0,0.00162]
[1725635457381,0.23445115,54749.0,54748.0,0.00162]
[1725635457660,0.10185447,54749.0,54748.0,0.00162]
[1725635457902,0.55573687,54749.0,54748.0,0.00162]
[1725635458387,1.26033673,54749.0,54748.0,0.00162]
[1725635458618,1.26033673,54749.0,54713.0,0.52812515]
[1725635458619,0.002,54736.0,54713.0,0.52812515]
[1725635458838,0.4538824,54729.0,54713.0,0.52812515]
[1725635459070,0.10165721,54728.0,54713.0,0.52812515]
[1725635459292,0.10165721,54728.0,54714.0,0.0383]
[1725635459521,0.00165721,54727.0,54714.0,0.0383]
[1725635459769,0.00165721,54727.0,54714.0,0.00163]
[1725635460015,0.4538824,54720.0,54714.0,0.00163]
[1725635460241,0.4037,54722.0,54714.0,0.00163]
[1725635460242,0.00165721,54719.0,54714.0,0.00163]
[1725635460806,0.10165721,54719.0,54714.0,0.00163]
[1725635461037,0.10165721,54719.0,54714.0,0.39963]
[1725635461038,0.00165721,54719.0,54714.0,0.39963]
[1725635461356,0.4538824,54734.0,54715.0,0.18955494]
[1725635461357,0.00165721,54733.0,54715.0,0.18955494]
[1725635461551,0.00165721,54732.0,54716.0,0.03667]
[1725635461785,0.02532995,54734.0,54716.0,0.00365481]
[1725635462007,0.02532995,54734.0,54719.0,0.4538824]
[1725635462242,0.00165721,54738.0,54720.0,0.023]
[1725635462645,0.3976,54756.0,54727.0,0.03667]
[1725635462932,0.01,54770.0,54724.0,0.4538824]
[1725635462933,0.52650515,54743.0,54740.0,0.03667]
[1725635463148,0.52650515,54743.0,54732.0,0.8427824]
[1725635463149,0.3751,54753.0,54741.0,0.023]
[1725635463379,0.4538824,54749.0,54741.0,0.023]
[1725635463618,0.4538824,54749.0,54728.0,0.1839]
[1725635463619,0.4538824,54742.0,54728.0,0.1839]
[1725635463906,0.3751,54753.0,54733.0,0.52650515]
[1725635463907,0.4538824,54748.0,54733.0,0.52650515]
[1725635464089,0.3751,54753.0,54734.0,0.023]
[1725635464326,0.52650515,54752.0,54729.0,0.023]
[1725635464563,0.4538824,54747.0,54730.0,0.03667]
[1725635464807,0.3789,54740.0,54722.0,0.196]
[1725635465033,0.3789,54740.0,54719.0,0.92160515]
[1725635465034,0.4538824,54735.0,54719.0,0.92160515]
[1725635465268,0.3789,54740.0,54719.0,0.92160515]
[1725635465269,0.1,54739.0,54720.0,0.00365475]
[1725635465579,0.1,54739.0,54720.0,0.22307075]
[1725635465812,0.12535315,54739.0,54720.0,0.03667]
[1725635466053,0.4538824,54735.0,54720.0,0.03667]
[1725635466305,0.12535315,54739.0,54720.0,0.5301602]
[1725635466544,0.12535315,54739.0,54720.0,0.03667]
[1725635466545,0.02535315,54739.0,54720.0,0.03667]
[1725635467009,0.1,54740.0,54720.0,0.03667]
[1725635467483,0.1,54740.0,54722.0,0.03667]
[1725635467750,0.1,54740.0,54715.0,0.196]
[1725635467751,0.4538824,54729.0,54715.0,0.196]
[1725635467984,0.4538824,54729.0,54714.0,0.00163]
[1725635467985,0.4538824,54723.0,54716.0,0.52650515]
[1725635468258,0.1,54728.0,54714.0,0.00163]
[1725635468494,0.4538824,54722.0,54714.0,0.00163]
[1725635468761,0.4538824,54722.0,54706.0,0.00162]
[1725635468762,0.4538824,54710.0,54706.0,0.00162]
[1725635469270,0.1798,54721.0,54706.0,0.00162]
[1725635469271,0.1,54709.0,54706.0,0.00162]
[1725635470291,0.02479563,54710.0,54706.0,0.00162]
[1725635470736,0.4538824,54711.0,54706.0,0.00162]
[1725635470965,0.01,54708.0,54706.0,0.00162]
[1725635471215,0.6851,54710.0,54706.0,0.00162]
[1725635471471,0.1,54710.0,54706.0,0.00162]
[1725635471956,0.1,54710.0,54693.0,0.00162]
[1725635471957,0.3969,54698.0,54693.0,0.00162]
[1725635472214,0.4069,54698.0,54693.0,0.00162]
[1725635472473,0.4538824,54694.0,54691.0,0.03667]
[1725635472690,0.2698,54693.0,54691.0,0.03667]
[1725635473164,0.2698,54693.0,54680.0,0.00030384]
[1725635473165,0.01,54691.0,54680.0,0.00030384]
[1725635473441,0.4538824,54685.0,54680.0,0.00030384]
[1725635473706,0.1,54684.0,54680.0,0.00030384]
[1725635473935,0.03,54681.0,54680.0,0.00030384]
[1725635474171,0.01,54680.0,54661.0,0.00162]
[1725635474409,0.1,54680.0,54661.0,0.00162]
[1725635474920,0.1,54680.0,54671.0,0.3971]
[1725635475183,0.12490874,54680.0,54671.0,0.3971]
[1725635475407,0.12490874,54680.0,54672.0,0.023]
[1725635475648,0.1,54679.0,54672.0,0.023]
[1725635476134,0.02490874,54680.0,54672.0,0.023]
[1725635476135,0.1,54684.0,54672.0,0.023]
[1725635476357,0.02556293,54682.0,54672.0,0.023]
[1725635476764,0.4135,54695.0,54672.0,0.023]
[1725635476765,0.4135,54709.0,54679.0,0.6053]
[1725635476771,0.52650515,54705.0,54681.0,0.4538824]
[1725635477045,0.52650515,54705.0,54683.0,0.5712]
[1725635477311,0.52650515,54705.0,54693.0,0.21717]
[1725635477542,0.06727052,54717.0,54694.0,0.00365629]
[1725635477857,0.06727052,54717.0,54699.0,0.03667]
[1725635477858,0.02482549,54717.0,54699.0,0.03667]
[1725635478086,0.02482549,54717.0,54701.0,0.03667]
[1725635478328,0.02,54731.0,54701.0,0.03663]
[1725635478329,0.4538824,54729.0,54701.0,0.03663]
[1725635478561,0.02523462,54719.0,54702.0,0.023]
[1725635478800,0.4538824,54722.0,54702.0,0.023]
[1725635479289,0.07436824,54728.0,54702.0,0.023]
[1725635479290,0.4538824,54711.0,54702.0,0.023]
[1725635479519,0.4538824,54711.0,54693.0,0.569]
[1725635479767,0.4538824,54711.0,54695.0,0.52650515]
[1725635480044,0.4538824,54716.0,54693.0,0.751838]
[1725635480309,0.62650515,54715.0,54697.0,0.03667]
[1725635480559,0.1,54715.0,54697.0,0.03667]
[1725635480803,0.1698,54728.0,54693.0,0.569]
[1725635480804,0.02473205,54720.0,54698.0,0.42722602]
[1725635481049,0.02473205,54720.0,54703.0,0.60567]
[1725635481279,0.4538824,54741.0,54714.0,0.23037]
[1725635481513,0.4538824,54741.0,54715.0,0.023]
[1725635481514,0.52650515,54729.0,54715.0,0.023]
[1725635481745,0.4538824,54720.0,54715.0,0.023]
[1725635482023,0.4538824,54720.0,54714.0,0.023]
[1725635482280,0.8290824,54725.0,54714.0,0.023]
[1725635482527,0.01,54736.0,54714.0,0.023]
[1725635482528,0.4538824,54735.0,54714.0,0.023]
[1725635482767,0.4538824,54735.0,54715.0,0.64417]
[1725635482768,0.01906525,54724.0,54715.0,0.64417]
[1725635483014,0.01906525,54724.0,54716.0,0.023]
[1725635483242,0.4538824,54735.0,54716.0,0.023]
[1725635483243,0.4538824,54725.0,54716.0,0.023]
[1725635483931,0.01906525,54734.0,54716.0,0.54950515]
[1725635484215,0.16832049,54740.0,54716.0,0.023]
[1725635484465,0.4139,54744.0,54719.0,0.03667]
[1725635484740,0.4538824,54735.0,54720.0,0.023]
[1725635484986,0.15640876,54743.0,54720.0,0.023]
[1725635484987,0.4538824,54730.0,54720.0,0.023]
[1725635485226,0.4538824,54730.0,54721.0,0.52650515]
[1725635485482,0.02,54740.0,54722.0,0.023]
[1725635485483,0.4538824,54740.0,54722.0,0.023]
[1725635485708,0.4538824,54725.0,54715.0,0.196]
[1725635485936,0.4538824,54730.0,54716.0,0.54950515]
[1725635486170,0.1,54729.0,54716.0,0.023]
[1725635486673,0.1,54729.0,54716.0,0.05967]
[1725635486931,0.03557516,54744.0,54716.0,0.05967]
[1725635486932,0.3771,54738.0,54717.0,0.0036551]
[1725635487153,0.3771,54738.0,54716.0,0.023]
[1725635487154,0.3771,54738.0,54718.0,0.023]
[1725635487391,0.02532048,54740.0,54727.0,0.182723]
[1725635487654,0.01,54759.0,54718.0,0.0036546]
[1725635487655,0.52650515,54746.0,54736.0,0.03667]
[1725635487895,0.01906525,54751.0,54738.0,0.03667]
[1725635488223,0.4538824,54760.0,54746.0,0.21933]
[1725635488224,0.52650515,54760.0,54746.0,0.21933]
[1725635488442,0.52650515,54760.0,54748.0,0.03667]
[1725635488443,0.01906525,54757.0,54748.0,0.03667]
[1725635488681,0.02462162,54765.0,54753.0,0.4151]
[1725635488921,0.4538824,54757.0,54753.0,0.4151]
[1725635489187,0.4538824,54757.0,54754.0,0.023]
[1725635489446,0.00082,54770.0,54748.0,0.41685304]
[1725635489681,0.00082,54770.0,54749.0,0.4538824]
[1725635489907,0.00082,54770.0,54751.0,0.03667]
[1725635490132,0.00082,54770.0,54753.0,0.03667]
[1725635490595,0.02549457,54763.0,54754.0,0.05967]
[1725635491090,0.00082,54770.0,54754.0,0.05967]
[1725635491580,0.02578723,54765.0,54754.0,0.05967]
[1725635491913,0.02578723,54765.0,54754.0,0.63557]
[1725635492086,0.00082,54770.0,54760.0,0.03667]
[1725635492314,0.00082,54770.0,54762.0,0.03667]
[1725635492561,0.52650515,54775.0,54769.0,0.01]
[1725635492806,0.4538824,54783.0,54770.0,0.023]
[1725635493309,0.4538824,54783.0,54764.0,0.03667]
[1725635493310,0.4538824,54783.0,54766.0,0.023]
[1725635493549,0.4538824,54783.0,54765.0,0.023]
[1725635493802,0.4538824,54773.0,54765.0,0.023]
[1725635494552,0.01906525,54791.0,54769.0,0.56317515]
[1725635494563,0.01906525,54791.0,54782.0,0.01]
[1725635494802,0.0007,54794.0,54790.0,0.01]
[1725635494803,0.02495498,54793.0,54790.0,0.01]
[1725635495027,0.02495498,54793.0,54791.0,0.3988]
[1725635495263,0.02595,54794.0,54791.0,0.3988]
[1725635495491,0.02595,54794.0,54775.0,0.1947]
[1725635495492,0.4538824,54792.0,54780.0,0.4012]
[1725635495720,0.4538824,54792.0,54781.0,0.023]
[1725635496283,0.02560203,54794.0,54787.0,0.01]
[1725635496499,0.02560203,54794.0,54792.0,0.03667]
[1725635496500,0.0007,54794.0,54792.0,0.03667]
[1725635496750,0.0007,54794.0,54788.0,0.6121]
[1725635496751,0.0007,54794.0,54793.0,0.023]
[1725635497014,0.0007,54794.0,54791.0,0.023]
[1725635497015,0.4538824,54793.0,54791.0,0.023]
[1725635497272,0.0007,54794.0,54793.0,0.3984]
[1725635497508,0.0007,54794.0,54793.0,0.46807]
[1725635497766,0.00081,54810.0,54800.0,0.3964]
[1725635498013,0.00081,54810.0,54807.0,0.01]
[1725635498258,0.00081,54810.0,54808.0,0.023]
[1725635498505,0.00081,54810.0,54809.0,0.03667]
[1725635498754,0.00081,54810.0,54809.0,0.26587]
[1725635499259,0.000814,54825.0,54824.0,0.4246]
[1725635499508,0.000814,54825.0,54824.0,0.6323]
[1725635500241,0.000814,54825.0,54824.0,0.6343]
[1725635500467,0.000814,54825.0,54824.0,0.6323]
[1725635500702,0.000814,54825.0,54818.0,0.1905]
[1725635501434,0.000814,54825.0,54805.0,0.01]
[1725635501435,0.4538824,54821.0,54805.0,0.01]
[1725635501691,0.4538824,54821.0,54807.0,0.52650515]
[1725635501922,0.4538824,54815.0,54805.0,0.01]
[1725635502185,0.4538824,54809.0,54804.0,0.1914]
[1725635502413,0.4538824,54809.0,54794.0,0.002]
[1725635502414,0.4538824,54809.0,54794.0,0.201]
[1725635502647,0.4538824,54809.0,54790.0,0.01]
[1725635502648,0.4538824,54796.0,54790.0,0.01]
[1725635502872,0.4538824,54796.0,54788.0,0.191]
[1725635502873,0.182518,54789.0,54788.0,0.191]
[1725635503129,1.01259,54789.0,54788.0,0.191]
[1725635503627,0.91259,54789.0,54788.0,0.201]
[1725635503849,0.547554,54789.0,54788.0,0.203]
[1725635504299,0.1,54795.0,54794.0,0.01]
[1725635504515,1.01249,54795.0,54794.0,0.01]
[1725635505226,1.01249,54795.0,54794.0,0.033]
[1725635505449,1.01249,54795.0,54788.0,0.191]
[1725635505450,0.1,54795.0,54788.0,0.191]
[1725635505682,0.1,54795.0,54784.0,0.002]
[1725635505683,0.4538824,54789.0,54786.0,0.01]
[1725635505903,0.1,54794.0,54785.0,0.01]
[1725635506160,0.1,54794.0,54782.0,0.1979]
[1725635506395,0.1,54794.0,54778.0,0.002]
[1725635506396,0.182551,54779.0,54778.0,0.3768]
[1725635506631,0.1,54794.0,54773.0,0.198]
[1725635506632,0.1,54785.0,54783.0,0.01]
[1725635506866,0.1,54794.0,54783.0,0.01]
[1725635506867,0.182535,54784.0,54783.0,0.01]
[1725635507091,0.282535,54784.0,54783.0,0.01]
[1725635507362,0.182521,54788.0,54787.0,0.01]
[1725635507601,0.1,54793.0,54791.0,0.01]
[1725635507602,0.182508,54792.0,54791.0,0.01]
[1725635507844,0.282508,54792.0,54791.0,0.01]
[1725635508100,0.182508,54792.0,54791.0,0.01]
[1725635508340,0.182508,54792.0,54791.0,0.023]
[1725635508831,0.4676,54808.0,54788.0,0.023]
[1725635508832,0.4538824,54803.0,54788.0,0.023]
[1725635509071,0.4676,54808.0,54781.0,0.2086]
[1725635509072,0.4538824,54789.0,54781.0,0.2086]
[1725635509320,0.182528,54786.0,54785.0,0.01]
[1725635509563,0.000814,54825.0,54790.0,0.04667]
[1725635509564,0.182512,54791.0,54790.0,0.04667]
[1725635510059,0.182512,54791.0,54790.0,0.01]
[1725635510309,0.182512,54791.0,54790.0,0.033]
[1725635510560,0.182512,54791.0,54790.0,0.06967]
[1725635511063,0.182485,54799.0,54798.0,0.03667]
[1725635511361,0.182485,54799.0,54798.0,0.06967]
[1725635511591,0.182485,54799.0,54798.0,0.05967]
[1725635512093,0.20797941,54799.0,54798.0,0.05967]
[1725635512324,0.1833,54799.0,54798.0,0.05967]
[1725635512558,0.1833,54799.0,54798.0,0.06167]
[1725635512559,0.2833,54799.0,54798.0,0.06167]
[1725635512802,0.2833,54799.0,54798.0,0.05967]
[1725635513279,0.2833,54799.0,54798.0,0.07167]
[1725635513523,0.000815,54799.0,54798.0,0.46217]
[1725635513771,0.000815,54799.0,54798.0,0.43923667]
[1725635514004,0.1833,54799.0,54798.0,0.43917]
[1725635514250,0.1833,54799.0,54798.0,0.03667]
[1725635514477,0.1833,54799.0,54794.0,0.03667]
[1725635514478,0.182498,54795.0,54794.0,0.03667]
[1725635515048,0.000815,54799.0,54790.0,0.00163]
[1725635515049,0.182511,54791.0,54790.0,0.00163]
[1725635515257,0.7363934,54791.0,54790.0,0.00163]
[1725635515483,1.1357934,54791.0,54790.0,0.00163]
[1725635515755,1.1357934,54791.0,54771.0,0.4]
[1725635515756,0.182575,54772.0,54771.0,0.4]
[1725635515986,0.4538824,54777.0,54765.0,0.01]
[1725635516224,0.1,54772.0,54771.0,0.002]
[1725635516471,0.182575,54772.0,54771.0,0.04867]
[1725635516911,0.182575,54772.0,54764.0,0.5912]
[1725635516912,0.1,54783.0,54776.0,0.04667]
[1725635517158,0.1,54783.0,54781.0,0.01]
[1725635517417,0.282538,54783.0,54782.0,0.01]
[1725635517874,0.282538,54783.0,54782.0,0.033]
[1725635518356,0.28231833,54783.0,54782.0,0.033]
[1725635519101,0.182555,54778.0,54777.0,0.01]
[1725635519324,0.09978033,54783.0,54777.0,0.01]
[1725635519539,0.02,54796.0,54777.0,0.01]
[1725635519761,0.4538824,54794.0,54777.0,0.01]
[1725635519989,0.407815,54799.0,54771.0,0.4079]
[1725635519990,0.43252922,54799.0,54786.0,0.01]
[1725635520244,0.43252922,54799.0,54787.0,0.4217]
[1725635520245,0.02552922,54799.0,54787.0,0.4217]
[1725635520473,0.000815,54799.0,54798.0,0.01]
[1725635520699,0.000815,54799.0,54798.0,0.4217]
[1725635520956,0.000815,54799.0,54798.0,0.023]
[1725635521197,0.000815,54799.0,54788.0,0.1964]
[1725635521198,0.000815,54799.0,54790.0,0.01]
[1725635521427,0.4538824,54795.0,54790.0,0.01]
[1725635521653,0.000815,54799.0,54791.0,0.023]
[1725635521889,0.000815,54799.0,54798.0,0.01]
[1725635522109,0.000815,54799.0,54798.0,0.703779]
[1725635522826,0.000815,54799.0,54798.0,0.6306]
[1725635523798,0.000815,54799.0,54798.0,0.813088]
[1725635524054,0.468414,54825.0,54821.0,0.01]
[1725635524320,0.468414,54825.0,54819.0,0.3975]
[1725635524321,0.000814,54825.0,54824.0,0.01]
[1725635524556,0.18851,54848.0,54824.0,0.01]
[1725635524557,0.00081,54848.0,54839.0,0.3871]
[1725635524800,0.00081,54848.0,54839.0,0.5793]
[1725635525308,0.00081,54848.0,54839.0,0.6023]
[1725635526062,0.00081,54848.0,54839.0,1.524057]
[1725635526309,0.00081,54848.0,54843.0,1.0128974]
[1725635526533,0.00081,54848.0,54843.0,0.4151]
[1725635527250,0.00081,54848.0,54843.0,0.45177]
[1725635528491,0.00081,54848.0,54843.0,0.05967]
[1725635528752,0.4546924,54844.0,54843.0,0.03667]
[1725635529007,0.00081,54844.0,54843.0,0.03667]
[1725635529240,0.10081,54844.0,54843.0,0.04667]
[1725635529488,0.00081,54844.0,54843.0,0.04667]
[1725635529712,0.00081,54844.0,54843.0,0.05231656]
[1725635529957,0.00081,54844.0,54843.0,0.45051656]
[1725635530242,0.00081,54844.0,54843.0,0.66447]
[1725635530513,0.00081,54844.0,54843.0,0.03667]
[1725635531020,0.00081,54844.0,54838.0,0.03667]
[1725635531243,0.00081,54844.0,54825.0,0.01]
[1725635531244,0.4538824,54839.0,54825.0,0.01]
[1725635531491,0.4538824,54839.0,54830.0,0.01]
[1725635531724,0.1,54838.0,54830.0,0.01]
[1725635531943,0.1,54838.0,54831.0,0.03667]
[1725635532174,0.1,54838.0,54832.0,0.03667]
[1725635532175,0.42173625,54837.0,54832.0,0.03667]
[1725635532422,0.1,54838.0,54809.0,0.52650515]
[1725635532423,0.1961,54822.0,54809.0,0.52650515]